[Event "December 5 Early 2023"]
[Site "https://www.chess.com"]
[Date "2023.12.05"]
[Round "4"]
[White "Garcia Correa, Jose Ricardo"]
[Black "Cesar Maestre, Bernardo"]
[Result "0-1"]
[Board "201"]
[TimeControl "180+1"]
[WhiteFideId "5101832"]
[BlackFideId "24542547"]
[WhiteElo "2235"]
[BlackElo "2406"]
[WhiteTeam "MEX"]
[BlackTeam "ESP"]
[WhiteClock "0:00:14"]
[BlackClock "0:00:46"]

1. e4 {[%clk 0:02:08]}  c5 {[%clk 0:02:59]} 2. Nf3 {[%clk 0:02:07]}  d6 {[%clk 0:02:59]} 3. d4 {[%clk 0:02:07]}  cxd4 {[%clk 0:03:00]} 4. Nxd4 {[%clk 0:02:06]}  Nf6 {[%clk 0:03:00]} 5. Nc3 {[%clk 0:02:07]}  a6 {[%clk 0:03:01]} 6. f4 {[%clk 0:02:07]}  e5 {[%clk 0:02:59]} 7. Nf3 {[%clk 0:02:06]}  Qc7 {[%clk 0:03:00]} 8. Bd3 {[%clk 0:02:06]}  Nbd7 {[%clk 0:03:00]} 9. O-O {[%clk 0:02:06]}  Be7 {[%clk 0:02:58]} 10. a3 {[%clk 0:02:06]}  O-O {[%clk 0:02:57]} 11. Kh1 {[%clk 0:02:07]}  b5 {[%clk 0:02:57]} 12. Qe1 {[%clk 0:02:07]}  Bb7 {[%clk 0:02:58]} 13. fxe5 {[%clk 0:02:07]}  dxe5 {[%clk 0:02:56]} 14. Nh4 {[%clk 0:02:07]}  g6 {[%clk 0:02:48]} 15. Bh6 {[%clk 0:02:06]}  Rfd8 {[%clk 0:02:48]} 16. Qf2 {[%clk 0:02:00]}  Nc5 {[%clk 0:02:39]} 17. Rad1 {[%clk 0:01:48]}  Rd7 {[%clk 0:02:14]} 18. Bg5 {[%clk 0:01:46]}  Rd6 {[%clk 0:01:54]} 19. Be2 {[%clk 0:01:29]}  Rb6 {[%clk 0:01:31]} 20. Nd5 {[%clk 0:01:07]}  Bxd5 {[%clk 0:01:25]} 21. exd5 {[%clk 0:01:06]}  Nce4 {[%clk 0:01:26]} 22. Qe3 {[%clk 0:01:02]}  Nxg5 {[%clk 0:01:26]} 23. Qxg5 {[%clk 0:01:02]}  Nxd5 {[%clk 0:01:25]} 24. Qg4 {[%clk 0:00:58]}  Bxh4 {[%clk 0:01:17]} 25. Rxd5 {[%clk 0:00:55]}  Bf6 {[%clk 0:01:12]} 26. Bd3 {[%clk 0:00:55]}  Rd8 {[%clk 0:01:07]} 27. Qe4 {[%clk 0:00:53]}  Rxd5 {[%clk 0:01:04]} 28. Qxd5 {[%clk 0:00:53]}  Kg7 {[%clk 0:01:05]} 29. h4 {[%clk 0:00:47]}  Bxh4 {[%clk 0:01:00]} 30. g3 {[%clk 0:00:33]}  Bxg3 {[%clk 0:00:54]} 31. Kg2 {[%clk 0:00:32]}  Bf4 {[%clk 0:00:54]} 32. b4 {[%clk 0:00:26]}  Rd6 {[%clk 0:00:54]} 33. Qe4 {[%clk 0:00:24]}  Qc3 {[%clk 0:00:51]} 34. Rf3 {[%clk 0:00:20]}  Qd2+ {[%clk 0:00:47]} 35. Rf2 {[%clk 0:00:20]}  Qe3 {[%clk 0:00:44]} 36. Qxe3 {[%clk 0:00:19]}  Bxe3 {[%clk 0:00:45]} 37. Re2 {[%clk 0:00:19]}  Bd4 {[%clk 0:00:45]} 38. Kf3 {[%clk 0:00:20]}  f5 {[%clk 0:00:45]} 39. Rg2 {[%clk 0:00:16]}  e4+ {[%clk 0:00:44]} 40. Bxe4 {[%clk 0:00:17]}  fxe4+ {[%clk 0:00:45]} 41. Kxe4 {[%clk 0:00:14]}  Bf6 {[%clk 0:00:46]} 0-1

[Event "December 5 Early 2023"]
[Site "https://www.chess.com"]
[Date "2023.12.05"]
[Round "4"]
[White "Zoete, Roelant"]
[Black "Tarasova, Viktoriya"]
[Result "1-0"]
[Board "202"]
[TimeControl "180+1"]
[WhiteFideId "40103269"]
[BlackFideId "4175840"]
[WhiteElo "2204"]
[BlackElo "2350"]
[WhiteTeam "NED"]
[BlackTeam "RUS"]
[WhiteClock "0:01:50"]
[BlackClock "0:01:33"]

1. e4 {[%clk 0:03:00]}  e5 {[%clk 0:02:59]} 2. Nf3 {[%clk 0:03:01]}  Nc6 {[%clk 0:02:59]} 3. Nc3 {[%clk 0:03:01]}  Nf6 {[%clk 0:02:59]} 4. d4 {[%clk 0:03:01]}  exd4 {[%clk 0:02:59]} 5. Nxd4 {[%clk 0:03:02]}  Bb4 {[%clk 0:02:59]} 6. Nxc6 {[%clk 0:03:02]}  bxc6 {[%clk 0:02:59]} 7. Bd3 {[%clk 0:03:03]}  O-O {[%clk 0:02:58]} 8. O-O {[%clk 0:03:03]}  d5 {[%clk 0:02:59]} 9. exd5 {[%clk 0:03:03]}  cxd5 {[%clk 0:02:59]} 10. Bg5 {[%clk 0:03:03]}  c6 {[%clk 0:02:59]} 11. Na4 {[%clk 0:03:03]}  Bd6 {[%clk 0:02:57]} 12. c3 {[%clk 0:03:02]}  h6 {[%clk 0:02:57]} 13. Bh4 {[%clk 0:02:57]}  c5 {[%clk 0:02:56]} 14. Bc2 {[%clk 0:02:56]}  Ba6 {[%clk 0:02:34]} 15. Re1 {[%clk 0:02:54]}  Be7 {[%clk 0:02:34]} 16. Bxf6 {[%clk 0:02:45]}  Bxf6 {[%clk 0:02:13]} 17. Nxc5 {[%clk 0:02:44]}  Bc8 {[%clk 0:02:13]} 18. Qd3 {[%clk 0:02:43]}  g6 {[%clk 0:02:12]} 19. Rad1 {[%clk 0:02:38]}  Rb8 {[%clk 0:02:11]} 20. b4 {[%clk 0:02:26]}  d4 {[%clk 0:02:09]} 21. Qg3 {[%clk 0:02:25]}  Rb6 {[%clk 0:01:56]} 22. cxd4 {[%clk 0:02:15]}  Rxb4 {[%clk 0:01:52]} 23. d5 {[%clk 0:02:06]}  Rb2 {[%clk 0:01:50]} 24. Bb3 {[%clk 0:02:02]}  Qb6 {[%clk 0:01:46]} 25. Na4 {[%clk 0:01:54]}  Qb4 {[%clk 0:01:41]} 26. Nxb2 {[%clk 0:01:52]}  Bxb2 {[%clk 0:01:41]} 27. d6 {[%clk 0:01:51]}  Bf6 {[%clk 0:01:33]} 28. Qxg6+ {[%clk 0:01:50]} 1-0

[Event "December 5 Early 2023"]
[Site "https://www.chess.com"]
[Date "2023.12.05"]
[Round "4"]
[White "Eggleston, Thomas A"]
[Black "Feliz Dotel, Dewar Bienvenido"]
[Result "1-0"]
[Board "204"]
[TimeControl "180+1"]
[WhiteFideId "412139"]
[BlackFideId "6402801"]
[WhiteElo "2332"]
[BlackElo "2090"]
[WhiteTeam "ENG"]
[BlackTeam "DOM"]
[WhiteClock "0:00:01"]
[BlackClock "0:00:02"]

1. e4 {[%clk 0:02:53]}  e5 {[%clk 0:02:59]} 2. f4 {[%clk 0:02:52]}  exf4 {[%clk 0:02:58]} 3. Bc4 {[%clk 0:02:51]}  Qh4+ {[%clk 0:02:53]} 4. Kf1 {[%clk 0:02:51]}  f5 {[%clk 0:02:19]} 5. Nf3 {[%clk 0:02:48]}  Qh6 {[%clk 0:02:16]} 6. exf5 {[%clk 0:02:47]}  d5 {[%clk 0:02:02]} 7. Bxd5 {[%clk 0:02:42]}  Bd6 {[%clk 0:02:00]} 8. d4 {[%clk 0:02:35]}  Ne7 {[%clk 0:01:59]} 9. Qe2 {[%clk 0:02:24]}  Nd7 {[%clk 0:01:33]} 10. c4 {[%clk 0:01:44]}  Nf6 {[%clk 0:01:17]} 11. Be6 {[%clk 0:01:41]}  c6 {[%clk 0:01:03]} 12. Nc3 {[%clk 0:01:37]}  Nh5 {[%clk 0:00:49]} 13. Kg1 {[%clk 0:01:30]}  Bxe6 {[%clk 0:00:46]} 14. fxe6 {[%clk 0:01:30]}  O-O {[%clk 0:00:45]} 15. Bd2 {[%clk 0:00:58]}  Rf6 {[%clk 0:00:43]} 16. Re1 {[%clk 0:00:52]}  Re8 {[%clk 0:00:39]} 17. g4 {[%clk 0:00:44]}  fxg3 {[%clk 0:00:28]} 18. Bxh6 {[%clk 0:00:43]}  Rxh6 {[%clk 0:00:19]} 19. Ne5 {[%clk 0:00:29]}  Nf4 {[%clk 0:00:14]} 20. Qf3 {[%clk 0:00:23]}  Rf8 {[%clk 0:00:10]} 21. Nf7 {[%clk 0:00:17]}  Nxe6 {[%clk 0:00:08]} 22. Nxh6+ {[%clk 0:00:16]}  gxh6 {[%clk 0:00:07]} 23. Qg4+ {[%clk 0:00:16]}  Ng7 {[%clk 0:00:05]} 24. hxg3 {[%clk 0:00:15]}  h5 {[%clk 0:00:04]} 25. Qg5 {[%clk 0:00:12]}  Nf5 {[%clk 0:00:02]} 26. Ne4 {[%clk 0:00:10]}  h6 {[%clk 0:00:01]} 27. Nf6+ {[%clk 0:00:09]}  Kf7 {[%clk 0:00:01]} 28. Qd2 {[%clk 0:00:03]}  Nxg3 {[%clk 0:00:02]} 29. Rh3 {[%clk 0:00:02]}  N3f5 {[%clk 0:00:01]} 30. Nxh5 {[%clk 0:00:02]}  Kg6 {[%clk 0:00:01]} 31. Nxg7 {[%clk 0:00:01]}  Nxg7 {[%clk 0:00:02]} 32. Qg2+ {[%clk 0:00:01]}  Kh7 {[%clk 0:00:03]} 33. Rg3 {[%clk 0:00:01]}  Rg8 {[%clk 0:00:03]} 34. Rg4 {[%clk 0:00:01]}  Kh8 {[%clk 0:00:02]} 35. Rg6 {[%clk 0:00:01]}  h5 {[%clk 0:00:02]} 36. Rh6# {[%clk 0:00:01]} 1-0

[Event "December 5 Early 2023"]
[Site "https://www.chess.com"]
[Date "2023.12.05"]
[Round "4"]
[White "Budrewicz, Krzysztof"]
[Black "Verbin, Valentina"]
[Result "1-0"]
[Board "209"]
[TimeControl "180+1"]
[WhiteFideId "1127950"]
[BlackFideId "13905910"]
[WhiteElo "2497"]
[BlackElo "2214"]
[WhiteTeam "POL"]
[BlackTeam "MDA"]
[WhiteClock "0:02:05"]
[BlackClock "0:00:00"]

1. d4 {[%clk 0:03:00]}  Nf6 {[%clk 0:02:56]} 2. c4 {[%clk 0:02:59]}  g6 {[%clk 0:02:52]} 3. Nc3 {[%clk 0:02:58]}  Bg7 {[%clk 0:02:51]} 4. e4 {[%clk 0:02:58]}  O-O {[%clk 0:02:50]} 5. Be2 {[%clk 0:02:59]}  d6 {[%clk 0:02:47]} 6. Bg5 {[%clk 0:02:59]}  c5 {[%clk 0:02:45]} 7. d5 {[%clk 0:02:59]}  e6 {[%clk 0:02:45]} 8. Qd2 {[%clk 0:02:59]}  exd5 {[%clk 0:02:42]} 9. cxd5 {[%clk 0:02:59]}  Re8 {[%clk 0:02:37]} 10. f3 {[%clk 0:03:00]}  Qa5 {[%clk 0:02:28]} 11. Bf4 {[%clk 0:02:53]}  Rd8 {[%clk 0:01:28]} 12. Bd3 {[%clk 0:02:49]}  a6 {[%clk 0:01:23]} 13. Nge2 {[%clk 0:02:48]}  b5 {[%clk 0:01:23]} 14. O-O {[%clk 0:02:47]}  c4 {[%clk 0:01:18]} 15. Bc2 {[%clk 0:02:47]}  b4 {[%clk 0:01:18]} 16. Nd1 {[%clk 0:02:44]}  Nh5 {[%clk 0:00:50]} 17. Be3 {[%clk 0:02:41]}  Nd7 {[%clk 0:00:47]} 18. a3 {[%clk 0:02:39]}  Rb8 {[%clk 0:00:39]} 19. Nd4 {[%clk 0:02:33]}  c3 {[%clk 0:00:38]} 20. bxc3 {[%clk 0:02:30]}  bxa3 {[%clk 0:00:32]} 21. Nc6 {[%clk 0:02:27]}  Qc7 {[%clk 0:00:30]} 22. Nxb8 {[%clk 0:02:23]}  Qxb8 {[%clk 0:00:30]} 23. Rxa3 {[%clk 0:02:23]}  Ne5 {[%clk 0:00:30]} 24. Rb3 {[%clk 0:02:17]}  Qa8 {[%clk 0:00:20]} 25. Bd3 {[%clk 0:02:17]}  a5 {[%clk 0:00:20]} 26. Be2 {[%clk 0:02:16]}  a4 {[%clk 0:00:19]} 27. Ra3 {[%clk 0:02:16]}  Qa5 {[%clk 0:00:17]} 28. Nb2 {[%clk 0:02:14]}  Bd7 {[%clk 0:00:17]} 29. Rfa1 {[%clk 0:02:11]}  Ra8 {[%clk 0:00:08]} 30. Nxa4 {[%clk 0:02:07]}  Bxa4 {[%clk 0:00:05]} 31. Rxa4 {[%clk 0:02:07]}  Qxa4 {[%clk 0:00:05]} 32. Rxa4 {[%clk 0:02:07]}  Rxa4 {[%clk 0:00:05]} 33. g4 {[%clk 0:02:08]}  Nf6 {[%clk 0:00:04]} 34. h3 {[%clk 0:02:08]}  Nfd7 {[%clk 0:00:04]} 35. Bd4 {[%clk 0:02:07]}  Ra1+ {[%clk 0:00:01]} 36. Kg2 {[%clk 0:02:07]}  f5 {[%clk 0:00:00]} 37. f4 {[%clk 0:02:05]} 1-0

[Event "December 5 Early 2023"]
[Site "https://www.chess.com"]
[Date "2023.12.05"]
[Round "4"]
[White "Petersson, Kjell"]
[Black "Marchesich, Giovanni"]
[Result "0-1"]
[Board "213"]
[TimeControl "180+1"]
[WhiteFideId "1705148"]
[BlackFideId "2824790"]
[WhiteElo "2173"]
[BlackElo "2397"]
[WhiteTeam "SWE"]
[BlackTeam "ITA"]
[WhiteClock "0:00:06"]
[BlackClock "0:01:39"]

1. d4 {[%clk 0:03:00]}  Nf6 {[%clk 0:02:59]} 2. Bf4 {[%clk 0:03:01]}  Nh5 {[%clk 0:02:58]} 3. Bg5 {[%clk 0:02:49]}  h6 {[%clk 0:02:58]} 4. Bd2 {[%clk 0:02:40]}  Nf6 {[%clk 0:02:55]} 5. Nc3 {[%clk 0:02:37]}  d5 {[%clk 0:02:54]} 6. Bf4 {[%clk 0:02:34]}  a6 {[%clk 0:02:52]} 7. e3 {[%clk 0:02:32]}  b5 {[%clk 0:02:50]} 8. a3 {[%clk 0:02:29]}  Bb7 {[%clk 0:02:50]} 9. Nf3 {[%clk 0:02:28]}  e6 {[%clk 0:02:50]} 10. Bd3 {[%clk 0:02:27]}  Nbd7 {[%clk 0:02:49]} 11. h3 {[%clk 0:02:24]}  c5 {[%clk 0:02:49]} 12. b3 {[%clk 0:02:08]}  Rc8 {[%clk 0:02:45]} 13. O-O {[%clk 0:02:04]}  cxd4 {[%clk 0:02:39]} 14. Ne2 {[%clk 0:01:54]}  dxe3 {[%clk 0:02:34]} 15. Bxe3 {[%clk 0:01:54]}  Bc5 {[%clk 0:02:33]} 16. Qd2 {[%clk 0:01:43]}  Bxe3 {[%clk 0:02:30]} 17. Qxe3 {[%clk 0:01:44]}  Qb6 {[%clk 0:02:30]} 18. Ned4 {[%clk 0:01:40]}  O-O {[%clk 0:02:29]} 19. g4 {[%clk 0:01:35]}  Rfe8 {[%clk 0:02:24]} 20. g5 {[%clk 0:01:28]}  hxg5 {[%clk 0:02:24]} 21. Ne5 {[%clk 0:01:08]}  Nxe5 {[%clk 0:02:19]} 22. Qxe5 {[%clk 0:01:09]}  Nd7 {[%clk 0:02:11]} 23. Qe3 {[%clk 0:00:34]}  e5 {[%clk 0:02:09]} 24. Qxg5 {[%clk 0:00:22]}  Qxd4 {[%clk 0:01:51]} 25. Qf5 {[%clk 0:00:17]}  Nf6 {[%clk 0:01:49]} 26. Rae1 {[%clk 0:00:14]}  Qf4 {[%clk 0:01:47]} 27. Qxf4 {[%clk 0:00:11]}  exf4 {[%clk 0:01:47]} 28. Rxe8+ {[%clk 0:00:10]}  Rxe8 {[%clk 0:01:48]} 29. Rd1 {[%clk 0:00:09]}  Bc8 {[%clk 0:01:43]} 30. Kh2 {[%clk 0:00:08]}  g6 {[%clk 0:01:42]} 31. Rg1 {[%clk 0:00:09]}  Kg7 {[%clk 0:01:41]} 32. h4 {[%clk 0:00:06]}  Rh8 {[%clk 0:01:39]} 0-1

[Event "December 5 Early 2023"]
[Site "https://www.chess.com"]
[Date "2023.12.05"]
[Round "4"]
[White "Pertinez Soria, Juan Luis"]
[Black "Zampronha, Wladimir Camilo"]
[Result "1-0"]
[Board "214"]
[TimeControl "180+1"]
[WhiteFideId "2225620"]
[BlackFideId "2103087"]
[WhiteElo "2149"]
[BlackElo "2388"]
[WhiteTeam "ESP"]
[BlackTeam "BRA"]
[WhiteClock "0:00:27"]
[BlackClock "0:00:00"]

1. e4 {[%clk 0:03:00]}  c5 {[%clk 0:02:58]} 2. Nf3 {[%clk 0:03:00]}  e6 {[%clk 0:02:58]} 3. d4 {[%clk 0:02:55]}  cxd4 {[%clk 0:02:59]} 4. Nxd4 {[%clk 0:02:55]}  Nc6 {[%clk 0:02:59]} 5. Nb5 {[%clk 0:02:56]}  d6 {[%clk 0:02:56]} 6. c4 {[%clk 0:02:54]}  Nf6 {[%clk 0:02:55]} 7. N1c3 {[%clk 0:02:53]}  a6 {[%clk 0:02:55]} 8. Na3 {[%clk 0:02:52]}  Be7 {[%clk 0:02:54]} 9. Nc2 {[%clk 0:02:52]}  O-O {[%clk 0:02:55]} 10. Be2 {[%clk 0:02:51]}  b6 {[%clk 0:02:55]} 11. O-O {[%clk 0:02:51]}  Bb7 {[%clk 0:02:55]} 12. Be3 {[%clk 0:02:52]}  Rc8 {[%clk 0:02:54]} 13. Rc1 {[%clk 0:02:52]}  Qc7 {[%clk 0:02:52]} 14. b4 {[%clk 0:02:52]}  Ne5 {[%clk 0:02:36]} 15. Na3 {[%clk 0:02:42]}  Nxe4 {[%clk 0:02:31]} 16. Nxe4 {[%clk 0:02:42]}  Bxe4 {[%clk 0:02:31]} 17. Qd4 {[%clk 0:02:42]}  Qb7 {[%clk 0:02:11]} 18. f3 {[%clk 0:02:37]}  Bg6 {[%clk 0:01:56]} 19. Qxb6 {[%clk 0:02:32]}  Qa8 {[%clk 0:01:53]} 20. c5 {[%clk 0:02:26]}  Rb8 {[%clk 0:01:47]} 21. Qxa6 {[%clk 0:01:57]}  Qxa6 {[%clk 0:01:46]} 22. Bxa6 {[%clk 0:01:58]}  Rxb4 {[%clk 0:01:46]} 23. c6 {[%clk 0:01:54]}  Bd8 {[%clk 0:01:14]} 24. c7 {[%clk 0:01:51]}  Bxc7 {[%clk 0:01:15]} 25. Rxc7 {[%clk 0:01:51]}  Ra4 {[%clk 0:01:16]} 26. Nc4 {[%clk 0:01:35]}  Rxa6 {[%clk 0:01:15]} 27. Nxe5 {[%clk 0:01:33]}  dxe5 {[%clk 0:01:16]} 28. Ra1 {[%clk 0:01:33]}  Rfa8 {[%clk 0:01:04]} 29. a3 {[%clk 0:01:32]}  h6 {[%clk 0:01:02]} 30. Bc5 {[%clk 0:01:32]}  Bd3 {[%clk 0:00:59]} 31. Bb4 {[%clk 0:01:31]}  e4 {[%clk 0:00:57]} 32. Kf2 {[%clk 0:01:27]}  R6a7 {[%clk 0:00:52]} 33. Rac1 {[%clk 0:01:22]}  Kh7 {[%clk 0:00:47]} 34. Ke3 {[%clk 0:01:21]}  f5 {[%clk 0:00:41]} 35. R1c6 {[%clk 0:01:16]}  Bf1 {[%clk 0:00:22]} 36. g3 {[%clk 0:00:56]}  exf3 {[%clk 0:00:21]} 37. Bc3 {[%clk 0:00:53]}  Bb5 {[%clk 0:00:16]} 38. Rc5 {[%clk 0:00:45]}  Rxc7 {[%clk 0:00:17]} 39. Rxc7 {[%clk 0:00:45]}  Rxa3 {[%clk 0:00:16]} 40. Rxg7+ {[%clk 0:00:42]}  Kh8 {[%clk 0:00:17]} 41. Rc7+ {[%clk 0:00:38]}  Rxc3+ {[%clk 0:00:15]} 42. Rxc3 {[%clk 0:00:37]}  Be2 {[%clk 0:00:12]} 43. Rc7 {[%clk 0:00:36]}  Kg8 {[%clk 0:00:12]} 44. Ra7 {[%clk 0:00:33]}  h5 {[%clk 0:00:11]} 45. Re7 {[%clk 0:00:30]}  Bc4 {[%clk 0:00:08]} 46. Kxf3 {[%clk 0:00:28]}  Kf8 {[%clk 0:00:09]} 47. Rc7 {[%clk 0:00:27]}  Kg8 {[%clk 0:00:08]} 48. Kf4 {[%clk 0:00:27]}  Kf8 {[%clk 0:00:00]} 49. Rxc4 {[%clk 0:00:27]} 1-0

[Event "December 5 Early 2023"]
[Site "https://www.chess.com"]
[Date "2023.12.05"]
[Round "4"]
[White "Johnson, Ben"]
[Black "titledsquirrel2007"]
[Result "0-1"]
[Board "217"]
[TimeControl "180+1"]
[WhiteFideId "2010917"]
[WhiteElo "2122"]
[BlackElo "2315"]
[WhiteTeam "USA"]
[WhiteClock "0:00:00"]
[BlackClock "0:00:39"]

1. Nf3 {[%clk 0:02:58]}  f5 {[%clk 0:02:59]} 2. d4 {[%clk 0:02:56]}  Nf6 {[%clk 0:02:59]} 3. g3 {[%clk 0:02:57]}  e6 {[%clk 0:02:58]} 4. Bg2 {[%clk 0:02:57]}  d5 {[%clk 0:02:58]} 5. O-O {[%clk 0:02:57]}  Bd6 {[%clk 0:02:58]} 6. Ne5 {[%clk 0:02:53]}  O-O {[%clk 0:02:58]} 7. c4 {[%clk 0:02:46]}  c6 {[%clk 0:02:56]} 8. b3 {[%clk 0:02:37]}  Qe7 {[%clk 0:02:51]} 9. a4 {[%clk 0:02:33]}  Nbd7 {[%clk 0:02:51]} 10. Nxd7 {[%clk 0:02:24]}  Bxd7 {[%clk 0:02:50]} 11. Ba3 {[%clk 0:02:23]}  Rad8 {[%clk 0:02:33]} 12. Bxd6 {[%clk 0:02:20]}  Qxd6 {[%clk 0:02:34]} 13. a5 {[%clk 0:02:18]}  Ne4 {[%clk 0:02:31]} 14. e3 {[%clk 0:02:08]}  e5 {[%clk 0:02:27]} 15. c5 {[%clk 0:02:03]}  Qc7 {[%clk 0:02:25]} 16. Nd2 {[%clk 0:01:58]}  a6 {[%clk 0:02:22]} 17. Qc2 {[%clk 0:01:28]}  Nxd2 {[%clk 0:02:13]} 18. Qxd2 {[%clk 0:01:28]}  f4 {[%clk 0:02:13]} 19. dxe5 {[%clk 0:01:23]}  f3 {[%clk 0:02:12]} 20. Bh1 {[%clk 0:01:19]}  Qxe5 {[%clk 0:02:13]} 21. Ra4 {[%clk 0:01:10]}  Bf5 {[%clk 0:02:11]} 22. Bxf3 {[%clk 0:01:00]}  Bh3 {[%clk 0:02:07]} 23. Bg2 {[%clk 0:00:58]}  Bc8 {[%clk 0:02:07]} 24. Rf4 {[%clk 0:00:52]}  Rxf4 {[%clk 0:02:05]} 25. gxf4 {[%clk 0:00:50]}  Qe7 {[%clk 0:02:04]} 26. Rd1 {[%clk 0:00:43]}  Qxc5 {[%clk 0:02:03]} 27. b4 {[%clk 0:00:41]}  Qe7 {[%clk 0:02:02]} 28. Qd4 {[%clk 0:00:39]}  Rd6 {[%clk 0:01:59]} 29. e4 {[%clk 0:00:37]}  Rg6 {[%clk 0:01:58]} 30. f5 {[%clk 0:00:30]}  Rg4 {[%clk 0:01:54]} 31. h3 {[%clk 0:00:25]}  Rg5 {[%clk 0:01:53]} 32. exd5 {[%clk 0:00:20]}  Bxf5 {[%clk 0:01:53]} 33. dxc6 {[%clk 0:00:19]}  Be4 {[%clk 0:01:49]} 34. Qc4+ {[%clk 0:00:14]}  Kf8 {[%clk 0:01:41]} 35. c7 {[%clk 0:00:12]}  Rxg2+ {[%clk 0:01:40]} 36. Kf1 {[%clk 0:00:11]}  Rxf2+ {[%clk 0:00:56]} 37. Kxf2 {[%clk 0:00:12]}  Qf6+ {[%clk 0:00:56]} 38. Ke2 {[%clk 0:00:09]}  Qf3+ {[%clk 0:00:56]} 39. Kd2 {[%clk 0:00:09]}  Qf4+ {[%clk 0:00:55]} 40. Kc3 {[%clk 0:00:07]}  Qe5+ {[%clk 0:00:55]} 41. Kb3 {[%clk 0:00:06]}  Qg3+ {[%clk 0:00:48]} 42. Ka4 {[%clk 0:00:05]}  Bc6+ {[%clk 0:00:38]} 43. Qxc6 {[%clk 0:00:05]}  bxc6 {[%clk 0:00:39]} 44. c8=Q+ {[%clk 0:00:05]}  Kf7 {[%clk 0:00:40]} 45. Qc7+ {[%clk 0:00:05]}  Qxc7 {[%clk 0:00:39]} 46. Rf1+ {[%clk 0:00:00]}  Kg8 {[%clk 0:00:39]} 0-1

[Event "December 5 Early 2023"]
[Site "https://www.chess.com"]
[Date "2023.12.05"]
[Round "4"]
[White "Hernandez Jimenez, Alexander Andres"]
[Black "Jesusesmifuerza"]
[Result "1-0"]
[Board "218"]
[TimeControl "180+1"]
[WhiteFideId "3900452"]
[WhiteElo "2314"]
[BlackElo "2121"]
[WhiteTeam "VEN"]
[WhiteClock "0:01:26"]
[BlackClock "0:01:31"]

1. e4 {[%clk 0:02:47]}  e5 {[%clk 0:02:59]} 2. Nf3 {[%clk 0:02:46]}  Nc6 {[%clk 0:02:59]} 3. Bb5 {[%clk 0:02:45]}  a6 {[%clk 0:02:58]} 4. Ba4 {[%clk 0:02:45]}  Nf6 {[%clk 0:02:40]} 5. d3 {[%clk 0:02:43]}  Bc5 {[%clk 0:02:38]} 6. O-O {[%clk 0:02:42]}  b5 {[%clk 0:02:37]} 7. Bb3 {[%clk 0:02:41]}  d6 {[%clk 0:02:37]} 8. c3 {[%clk 0:02:41]}  O-O {[%clk 0:02:38]} 9. Nbd2 {[%clk 0:02:39]}  h6 {[%clk 0:02:38]} 10. h3 {[%clk 0:02:38]}  Be6 {[%clk 0:02:34]} 11. Re1 {[%clk 0:02:35]}  Ne7 {[%clk 0:02:30]} 12. Nf1 {[%clk 0:02:33]}  Ng6 {[%clk 0:02:30]} 13. Ng3 {[%clk 0:02:33]}  Nh7 {[%clk 0:02:30]} 14. d4 {[%clk 0:02:29]}  exd4 {[%clk 0:02:30]} 15. cxd4 {[%clk 0:02:29]}  Bxb3 {[%clk 0:02:28]} 16. Qxb3 {[%clk 0:02:27]}  Bb6 {[%clk 0:02:26]} 17. Nf5 {[%clk 0:02:22]}  Nf6 {[%clk 0:02:19]} 18. e5 {[%clk 0:02:01]}  dxe5 {[%clk 0:02:18]} 19. dxe5 {[%clk 0:02:01]}  Nh7 {[%clk 0:02:10]} 20. e6 {[%clk 0:01:48]}  Ne7 {[%clk 0:01:55]} 21. exf7+ {[%clk 0:01:41]}  Rxf7 {[%clk 0:01:51]} 22. Nxe7+ {[%clk 0:01:36]}  Kh8 {[%clk 0:01:51]} 23. Ng6+ {[%clk 0:01:33]}  Kg8 {[%clk 0:01:31]} 24. Nge5 {[%clk 0:01:26]} 1-0

[Event "December 5 Early 2023"]
[Site "https://www.chess.com"]
[Date "2023.12.05"]
[Round "4"]
[White "Allam, Yara"]
[Black "Korol, Dimitry"]
[Result "0-1"]
[Board "219"]
[TimeControl "180+1"]
[WhiteFideId "10615709"]
[BlackFideId "14108003"]
[WhiteElo "2113"]
[BlackElo "2308"]
[WhiteTeam "EGY"]
[BlackTeam "UKR"]
[WhiteClock "0:00:00"]
[BlackClock "0:00:50"]

1. e4 {[%clk 0:03:00]}  c5 {[%clk 0:02:59]} 2. Nf3 {[%clk 0:03:00]}  d6 {[%clk 0:02:59]} 3. d4 {[%clk 0:03:01]}  cxd4 {[%clk 0:03:00]} 4. Nxd4 {[%clk 0:03:01]}  Nf6 {[%clk 0:03:00]} 5. Nc3 {[%clk 0:03:02]}  g6 {[%clk 0:03:01]} 6. Be3 {[%clk 0:03:02]}  Bg7 {[%clk 0:03:01]} 7. f3 {[%clk 0:03:03]}  O-O {[%clk 0:03:02]} 8. Qd2 {[%clk 0:03:04]}  Nc6 {[%clk 0:03:03]} 9. g4 {[%clk 0:03:04]}  Be6 {[%clk 0:03:02]} 10. h4 {[%clk 0:03:03]}  d5 {[%clk 0:03:01]} 11. g5 {[%clk 0:03:00]}  Nh5 {[%clk 0:02:59]} 12. Nxe6 {[%clk 0:02:56]}  fxe6 {[%clk 0:02:59]} 13. exd5 {[%clk 0:02:55]}  exd5 {[%clk 0:02:53]} 14. Qxd5+ {[%clk 0:02:54]}  Qxd5 {[%clk 0:02:50]} 15. Nxd5 {[%clk 0:02:54]}  e6 {[%clk 0:01:15]} 16. Nc7 {[%clk 0:02:50]}  Bxb2 {[%clk 0:01:15]} 17. Rb1 {[%clk 0:02:41]}  Bc3+ {[%clk 0:01:14]} 18. Kf2 {[%clk 0:00:00]}  Ne5 {[%clk 0:00:50]} 0-1

[Event "December 5 Early 2023"]
[Site "https://www.chess.com"]
[Date "2023.12.05"]
[Round "4"]
[White "Biriukov, Ilja"]
[Black "Gajwa Ankit"]
[Result "1-0"]
[Board "220"]
[TimeControl "180+1"]
[WhiteFideId "4113373"]
[BlackFideId "5077834"]
[WhiteElo "2111"]
[BlackElo "2304"]
[WhiteTeam "RUS"]
[BlackTeam "IND"]
[WhiteClock "0:01:29"]
[BlackClock "0:01:59"]

1. d4 {[%clk 0:03:00]}  Nf6 {[%clk 0:02:57]} 2. Nc3 {[%clk 0:03:00]}  d5 {[%clk 0:02:56]} 3. Bf4 {[%clk 0:02:59]}  e6 {[%clk 0:02:56]} 4. Qd2 {[%clk 0:02:59]}  Bd6 {[%clk 0:02:56]} 5. O-O-O {[%clk 0:02:59]}  a6 {[%clk 0:02:54]} 6. f3 {[%clk 0:02:58]}  b5 {[%clk 0:02:52]} 7. e4 {[%clk 0:02:57]}  b4 {[%clk 0:02:53]} 8. Na4 {[%clk 0:02:54]}  dxe4 {[%clk 0:02:52]} 9. Bc4 {[%clk 0:02:51]}  Bd7 {[%clk 0:02:50]} 10. Bb3 {[%clk 0:02:43]}  O-O {[%clk 0:02:45]} 11. g4 {[%clk 0:02:41]}  exf3 {[%clk 0:02:43]} 12. Nxf3 {[%clk 0:02:37]}  Ne4 {[%clk 0:02:28]} 13. Qe3 {[%clk 0:02:31]}  Bxf4 {[%clk 0:02:28]} 14. Qxf4 {[%clk 0:02:31]}  Nf2 {[%clk 0:02:28]} 15. Ne5 {[%clk 0:02:19]}  Nxh1 {[%clk 0:02:26]} 16. Rxh1 {[%clk 0:02:17]}  Nc6 {[%clk 0:02:24]} 17. Nf3 {[%clk 0:02:15]}  Ne7 {[%clk 0:02:18]} 18. Rf1 {[%clk 0:02:02]}  Bxa4 {[%clk 0:02:15]} 19. Bxa4 {[%clk 0:02:01]}  Nd5 {[%clk 0:02:15]} 20. Qe4 {[%clk 0:01:56]}  c5 {[%clk 0:02:13]} 21. dxc5 {[%clk 0:01:49]}  Qc7 {[%clk 0:02:12]} 22. c6 {[%clk 0:01:46]}  Nb6 {[%clk 0:02:10]} 23. Bb3 {[%clk 0:01:44]}  a5 {[%clk 0:02:09]} 24. Ng5 {[%clk 0:01:30]}  a4 {[%clk 0:01:59]} 25. Qxh7# {[%clk 0:01:29]} 1-0